fUST/lending_fUST_20250504
["ID","MTS","AMOUNT","RATE_DAILY","PERIOD"]
[359744602,1746293460560,-153.0,0.0002463,2]
[359744603,1746293460570,-153.0,0.0002463,2]
[359744604,1746293460579,-153.0,0.0002463,2]
[359744605,1746293460589,-153.0,0.0002463,2]
[359744606,1746293460598,-153.0,0.0002463,2]
[359744607,1746293460608,-153.0,0.0002463,2]
[359744608,1746293460617,-153.0,0.0002463,2]
[359744609,1746293460626,-153.0,0.0002463,2]
[359744610,1746293460636,-153.0,0.0002463,2]
[359744611,1746293460646,-153.0,0.0002463,2]
[359744612,1746293460655,-153.0,0.0002463,2]
[359744613,1746293460665,-153.0,0.0002463,2]
[359744614,1746293460674,-153.0,0.0002463,2]
[359744615,1746293460683,-153.0,0.0002463,2]
[359744616,1746293460693,-153.0,0.0002463,2]
[359744617,1746293460702,-153.0,0.0002463,2]
[359744618,1746293460712,-153.0,0.0002463,2]
[359744619,1746293460722,-153.0,0.0002463,2]
[359744620,1746293460731,-153.0,0.0002463,2]
[359744621,1746293460740,-153.0,0.0002463,2]
[359744622,1746293460750,-153.0,0.0002463,2]
[359744623,1746293460759,-153.0,0.0002463,2]
[359744624,1746293460768,-153.0,0.0002463,2]
[359744625,1746293460778,-153.0,0.0002463,2]
[359744626,1746293460790,-153.0,0.0002463,2]
[359744627,1746293460800,-400.0,0.00024657,2]
[359744628,1746293460810,-400.0,0.00024657,2]
[359744629,1746293460819,-400.0,0.00024657,2]
[359744630,1746293460831,-400.0,0.00024657,2]
[359744631,1746293460840,-207.50517268,0.00024657,2]
[359744632,1746293460850,-160.0,0.00024657,2]
[359744633,1746293460860,-500.0,0.00024657,15]
[359744634,1746293460871,-500.0,0.00024657,15]
[359744635,1746293460880,-500.0,0.00024657,15]
[359744636,1746293460890,-500.0,0.00024657,15]
[359744637,1746293460900,-429.21173065,0.00024657,15]
[359744638,1746293460910,-200.0,0.00024657,2]
[359744639,1746293460919,-206.61255951,0.00024657,2]
[359744640,1746293460929,-150.0,0.00024658,2]
[359744641,1746293460938,-247.349425,0.00024658,7]
[359744642,1746293460948,-200.0,0.00024658,15]
[359744643,1746293460958,-1000.0,0.00024658,14]
[359744644,1746293460967,-1000.0,0.00024658,14]
[359744645,1746293460977,-1000.0,0.00024658,14]
[359744646,1746293460987,-1000.0,0.00024658,14]
[359744647,1746293460996,-1000.0,0.00024658,14]
[359744648,1746293461006,-1000.0,0.00024658,14]
[359744649,1746293461016,-1000.0,0.00024658,14]
[359744650,1746293461026,-1000.0,0.00024658,14]
[359744651,1746293461035,-1000.0,0.00024658,14]
[359744652,1746293461045,-1000.0,0.00024658,14]
[359744653,1746293461055,-1000.0,0.00024658,14]
[359744654,1746293461064,-1000.0,0.00024658,14]
[359744655,1746293461074,-1000.0,0.00024658,14]
[359744656,1746293461084,-1000.0,0.00024658,14]
[359744657,1746293461093,-1000.0,0.00024658,14]
[359744658,1746293461103,-1000.0,0.00024658,14]
[359744659,1746293461113,-1000.0,0.00024658,14]
[359744660,1746293461123,-1000.0,0.00024658,14]
[359744661,1746293461133,-1000.0,0.00024658,14]
[359744662,1746293461143,-1000.0,0.00024658,14]
[359744663,1746293461153,-1000.0,0.00024658,14]
[359744664,1746293461163,-1000.0,0.00024658,14]
[359744665,1746293461172,-1000.0,0.00024658,14]
[359744666,1746293461267,-1000.0,0.00024658,14]
[359744667,1746293461277,-1000.0,0.00024658,14]
[359744668,1746293461287,-1000.0,0.00024658,14]
[359744669,1746293461297,-1000.0,0.00024658,14]
[359744670,1746293461306,-1000.0,0.00024658,14]
[359744671,1746293461315,-1000.0,0.00024658,14]
[359744672,1746293461325,-1000.0,0.00024658,14]
[359744673,1746293461334,-1000.0,0.00024658,14]
[359744674,1746293461343,-1000.0,0.00024658,14]
[359744675,1746293461352,-1000.0,0.00024658,14]
[359744676,1746293461362,-1000.0,0.00024658,14]
[359744677,1746293461371,-1000.0,0.00024658,14]
[359744678,1746293461380,-1000.0,0.00024658,14]
[359744679,1746293461390,-1000.0,0.00024658,14]
[359744680,1746293461400,-1000.0,0.00024658,14]
[359744681,1746293461410,-1000.0,0.00024658,14]
[359744682,1746293461419,-566.890187,0.00024658,14]
[359744683,1746293461429,-200.0,0.00024658,2]
[359744684,1746293461438,-380.0,0.00024658,2]
[359744685,1746293461448,-10059.90242138,0.00024728,11]
[359744686,1746293461458,-500.0,0.00024773,2]
[359744687,1746293461467,-262720.71683152,0.000248,2]
[359744688,1746293461477,-1000.0,0.000248,2]
[359744689,1746293461487,-2000.0,0.000248,2]
[359744690,1746293461496,-1950.474843,0.000248,5]
[359744691,1746293461506,-164809.218045,0.000248,2]
[359744692,1746293461515,-1203.78906744,0.0002488,3]
[359744693,1746293461524,-811396.22481136,0.000249,2]
[359744694,1746293461618,-2808.59602836,0.000249,2]
[359744695,1746293461709,-500.0,0.00020213,2]
[359744696,1746293461718,-500.0,0.00020487,2]
[359744697,1746293461728,-500.0,0.00020761,2]
[359744698,1746293461737,-255.0,0.00021035,2]
[359744699,1746293461747,-969.9999525,0.000249,2]
[359744700,1746293461758,-971.4373376,0.000249,2]
[359744734,1746294632009,-300.0,0.00018019,2]
[359744735,1746294632024,-51.63552655,0.00018019,2]
[359744736,1746294632038,-955.36447345,0.00018019,2]
[359744738,1746294632049,-400.0,0.0001802,2]
[359744739,1746294632060,-400.0,0.0001802,2]
[359744740,1746294632070,-244.63552655,0.0001802,2]
[359744741,1746294632084,-165.52447345,0.0001802,2]
[359744742,1746294632096,-400.0,0.0001802,2]
[359744743,1746294632107,-400.0,0.0001802,2]
[359744744,1746294632118,-400.0,0.0001802,2]
[359744745,1746294632128,-400.0,0.0001802,2]
[359744746,1746294632139,-400.0,0.0001802,2]
[359744747,1746294632150,-400.0,0.0001802,2]
[359744748,1746294632159,-400.0,0.0001802,2]
[359744749,1746294632168,-400.0,0.0001802,2]
[359744750,1746294632365,-400.0,0.0001802,2]
[359744751,1746294632381,-400.0,0.0001802,2]
[359744752,1746294632391,-400.0,0.0001802,2]
[359744753,1746294632401,-348.21439001,0.0001802,2]
[359744754,1746294632410,-400.0,0.0001802,2]
[359744755,1746294632421,-400.0,0.0001802,2]
[359744756,1746294632430,-400.0,0.0001802,2]
[359744757,1746294632440,-400.0,0.0001802,2]
[359744758,1746294632450,-408.25622231,0.0001802,2]
[359744759,1746294632459,-400.0,0.0001802,2]
[359744760,1746294632470,-400.0,0.0001802,2]
[359744761,1746294632480,-874.6101783,0.00018214,2]
[359744762,1746294632490,-400.0,0.00018294,2]
[359744763,1746294632500,-400.0,0.00018294,2]
[359744764,1746294632509,-400.0,0.00018294,2]
[359744765,1746294632518,-400.0,0.00018294,2]
[359744766,1746294632528,-400.0,0.00018294,2]
[359744767,1746294632537,-400.0,0.00018294,2]
[359744768,1746294632547,-400.0,0.00018294,2]
[359744769,1746294632556,-400.0,0.00018294,2]
[359744770,1746294632567,-400.0,0.00018294,2]
[359744771,1746294632578,-400.0,0.00018294,2]
[359744772,1746294632589,-400.0,0.00018294,2]
[359744773,1746294632598,-400.0,0.00018568,2]
[359744774,1746294632608,-400.0,0.00018568,2]
[359744775,1746294632620,-400.0,0.00018568,2]
[359744776,1746294632630,-400.0,0.00018568,2]
[359744777,1746294632639,-400.0,0.00018568,2]
[359744778,1746294632650,-400.0,0.00018842,2]
[359744779,1746294632660,-438.33,0.00018842,2]
[359744780,1746294632669,-400.0,0.00018842,2]
[359744781,1746294632679,-400.0,0.00019115,2]
[359744782,1746294632689,-400.0,0.00019115,2]
[359744783,1746294632698,-400.0,0.00019115,2]
[359744784,1746294632707,-400.0,0.00019115,2]
[359744785,1746294632717,-400.0,0.00019115,2]
[359744786,1746294632726,-400.0,0.00019115,2]
[359744787,1746294632736,-400.0,0.00019115,2]
[359744788,1746294632745,-400.0,0.00019115,2]
[359744789,1746294632754,-400.0,0.00019115,2]
[359744790,1746294632764,-400.0,0.00019115,2]
[359744791,1746294632773,-400.0,0.00019115,2]
[359744792,1746294632783,-400.0,0.00019115,2]
[359744793,1746294632792,-400.0,0.00019115,2]
[359744794,1746294632802,-400.0,0.00019115,2]
[359744795,1746294632812,-400.0,0.00019116,2]
[359744796,1746294632822,-207.08568606,0.00019116,2]
[359744797,1746294632831,-307.85293,0.00019178,2]
[359744798,1746294632841,-282.94209292,0.00019289,2]
[359744799,1746294632850,-185.43370541,0.00019386,2]
[359744800,1746294632859,-500.0,0.00019386,2]
[359744801,1746294632868,-500.0,0.00019386,2]
[359744802,1746294632878,-638.17169675,0.00019386,2]
[359744803,1746294632887,-500.0,0.00019386,2]
[359744804,1746294632897,-500.0,0.00019386,2]
[359744805,1746294632907,-500.0,0.00019386,2]
[359744806,1746294632917,-500.0,0.00019386,2]
[359744807,1746294632927,-500.0,0.00019386,2]
[359744808,1746294632937,-500.0,0.00019386,2]
[359744809,1746294632946,-450.0,0.00019386,2]
[359744810,1746294632956,-500.0,0.00019386,2]
[359744811,1746294632966,-500.0,0.00019386,2]
[359744812,1746294632975,-500.0,0.00019386,2]
[359744813,1746294632985,-371.93485704,0.00019388,2]
[359744814,1746294632994,-400.0,0.00019388,2]
[359744815,1746294633004,-400.0,0.00019388,2]
[359744816,1746294633014,-400.0,0.00019388,2]
[359744817,1746294633024,-400.0,0.00019388,2]
[359744818,1746294633034,-400.0,0.00019388,2]
[359744819,1746294633044,-400.0,0.00019388,2]
[359744820,1746294633054,-412.23147505,0.00019388,2]
[359744821,1746294633064,-400.0,0.00019388,2]
[359744822,1746294633074,-400.0,0.00019388,2]
[359744823,1746294633085,-400.0,0.00019388,2]
[359744824,1746294633095,-400.0,0.00019388,2]
[359744825,1746294633104,-400.0,0.00019389,2]
[359744826,1746294633115,-400.0,0.00019389,2]
[359744827,1746294633125,-400.0,0.00019389,2]
[359744828,1746294633135,-400.0,0.00019389,2]
[359744829,1746294633145,-400.0,0.00019389,2]
[359744830,1746294633155,-400.0,0.00019389,2]
[359744831,1746294633165,-400.0,0.00019389,2]
[359744832,1746294633175,-400.0,0.00019389,2]
[359744833,1746294633185,-400.0,0.00019389,2]
[359744834,1746294633195,-400.0,0.00019389,2]
[359744835,1746294633204,-400.0,0.00019389,2]
[359744836,1746294633214,-400.0,0.00019389,2]
[359744837,1746294633224,-400.0,0.00019389,2]
[359744838,1746294633234,-400.0,0.00019389,2]
[359744839,1746294633244,-455.21,0.00019389,2]
[359744840,1746294633253,-400.0,0.00019389,2]
[359744841,1746294633263,-400.0,0.00019389,2]
[359744842,1746294633273,-400.0,0.00019389,2]
[359744843,1746294633284,-549.24,0.00019389,2]
[359744844,1746294633294,-400.0,0.00019389,2]
[359744845,1746294633304,-400.0,0.00019389,2]
[359744846,1746294633314,-400.0,0.00019389,2]
[359744847,1746294633323,-400.0,0.00019389,2]
[359744848,1746294633333,-400.0,0.00019389,2]
[359744849,1746294633342,-400.0,0.00019389,2]
[359744850,1746294633351,-501.61,0.00019389,2]
[359744851,1746294633361,-191.1455098,0.00019389,2]
[359744852,1746294633371,-400.0,0.00019389,2]
[359744853,1746294633381,-400.0,0.00019389,2]
[359744854,1746294633390,-400.0,0.00019389,2]
[359744855,1746294633400,-400.0,0.00019389,2]
[359744856,1746294633410,-400.0,0.0001939,2]
[359744857,1746294633420,-387.55341737,0.00019647,2]
[359744858,1746294633429,-400.0,0.00019648,2]
[359744859,1746294633439,-400.0,0.00019648,2]
[359744860,1746294633448,-400.0,0.00019648,2]
[359744861,1746294633458,-400.0,0.00019648,2]
[359744862,1746294633467,-365.05004273,0.00019648,2]
[359744863,1746294633480,-34.94995727,0.00019648,2]
[359744864,1746294633489,-400.0,0.00019648,2]
[359744865,1746294633499,-226.62120951,0.00019648,2]
[359744866,1746294633511,-173.37879049,0.00019648,2]
[359744867,1746294633521,-400.0,0.00019648,2]
[359744868,1746294633530,-400.0,0.00019648,2]
[359744869,1746294633540,-400.0,0.00019648,2]
[359744870,1746294633550,-515.05,0.00019648,2]
[359744871,1746294633560,-400.0,0.00019648,2]
[359744872,1746294633574,-400.0,0.00019648,2]
[359744873,1746294633584,-400.0,0.00019648,2]
[359744874,1746294633595,-400.0,0.00019648,2]
[359744875,1746294633606,-400.0,0.00019648,2]
[359744876,1746294633616,-400.0,0.00019648,2]
[359744877,1746294633626,-400.0,0.00019648,2]
[359744878,1746294633636,-400.0,0.00019648,2]
[359744879,1746294633647,-400.0,0.00019648,2]
[359744880,1746294633656,-400.0,0.00019648,2]
[359744881,1746294633667,-400.0,0.00019648,2]
[359744882,1746294633677,-400.0,0.00019648,2]
[359744883,1746294633688,-400.0,0.00019648,2]
[359744884,1746294633698,-400.0,0.00019648,2]
[359744885,1746294633708,-400.0,0.00019648,2]
[359744886,1746294633718,-400.0,0.00019648,2]
[359744887,1746294633727,-400.0,0.00019648,2]
[359744888,1746294633737,-400.0,0.00019648,2]
[359744889,1746294633747,-400.0,0.00019648,2]
[359744890,1746294633757,-400.0,0.00019648,2]
[359744891,1746294633768,-400.0,0.00019648,2]
[359744892,1746294633778,-400.0,0.00019648,2]
[359744893,1746294633789,-400.0,0.00019648,2]
[359744894,1746294633799,-400.0,0.00019648,2]
[359744895,1746294633809,-400.0,0.00019648,2]
[359744896,1746294633820,-400.0,0.00019648,2]
[359744897,1746294633831,-400.0,0.00019648,2]
[359744898,1746294633841,-400.0,0.00019648,2]
[359744899,1746294633851,-400.0,0.00019648,2]
[359744900,1746294633861,-400.0,0.00019648,2]
[359744901,1746294633871,-400.0,0.00019648,2]
[359744902,1746294633881,-312.79932747,0.00019648,2]
[359744903,1746294633891,-749.5,0.00019648,2]
[359744904,1746294633901,-400.0,0.00019648,2]
[359744905,1746294633910,-400.0,0.00019648,2]
[359744906,1746294633921,-400.0,0.00019648,2]
[359744907,1746294633932,-400.0,0.00019648,2]
[359744908,1746294633942,-400.0,0.00019648,2]
[359744909,1746294633952,-420.0,0.0001966,2]
[359744910,1746294633965,-400.0,0.00019662,2]
[359744911,1746294633977,-400.0,0.00019662,2]
[359744912,1746294633987,-400.0,0.00019662,2]
[359744913,1746294633997,-400.0,0.00019662,2]
[359744914,1746294634008,-400.0,0.00019662,2]
[359744915,1746294634018,-400.0,0.00019662,2]
[359744916,1746294634028,-400.0,0.00019662,2]
[359744917,1746294634038,-400.0,0.00019662,2]
[359744918,1746294634048,-177.93278267,0.00019662,2]
[359744919,1746294634058,-400.0,0.00019662,2]
[359744920,1746294634069,-400.0,0.00019663,2]
[359744921,1746294634079,-400.0,0.00019663,2]
[359744922,1746294634089,-467.20878455,0.00019663,2]
[359744923,1746294634100,-400.0,0.00019663,2]
[359744924,1746294634110,-400.0,0.00019663,2]
[359744925,1746294634120,-400.0,0.00019663,2]
[359744926,1746294634131,-400.0,0.00019663,2]
[359744927,1746294634142,-400.0,0.00019663,2]
[359744928,1746294634152,-400.0,0.00019663,2]
[359744929,1746294634162,-400.0,0.00019663,2]
[359744930,1746294634173,-400.0,0.00019663,2]
[359744931,1746294634183,-400.0,0.00019663,2]
[359744932,1746294634193,-360.44681977,0.00019663,2]
[359744933,1746294634203,-400.0,0.00019663,2]
[359744934,1746294634214,-166.73,0.00019663,2]
[359744935,1746294634225,-400.0,0.00019663,2]
[359744936,1746294634235,-23.67392186,0.00019663,2]
[359744937,1746294634248,-376.32607814,0.00019663,2]
[359744938,1746294634259,-360.58377407,0.00019663,2]
[359745206,1746294640305,-283.755516,0.000189,2]
[359745208,1746294640316,-400.0,0.00019386,2]
[359745210,1746294640325,-400.0,0.0001966,2]
[359745212,1746294640335,-39.41622593,0.00019663,2]
[359745214,1746294640345,-400.0,0.00019663,2]
[359745216,1746294640355,-220.69780836,0.00019663,2]
[359746097,1746295832113,-6540.7567388,0.00018247,2]
[359746098,1746295832124,-982.3417755,0.00018317,2]
[359746101,1746295832134,-300.0,0.0001834,2]
[359746103,1746295832155,-1497.17951375,0.00018341,2]
[359746143,1746295838282,-282.4219525,0.00018341,2]
[359746635,1746295843216,-1592.07478935,0.00018341,2]
[359746637,1746295843226,-203.364569,0.00018353,2]
[359746640,1746295843237,-239.170344,0.000189,2]
[359746642,1746295843247,-246.282344,0.00019178,2]
[359746644,1746295843257,-247.57433134,0.00019281,2]
[359746646,1746295843267,-500.0,0.00019372,2]
[359746648,1746295843278,-404.05476148,0.00019372,2]
[359746650,1746295843290,-500.0,0.00019372,2]
[359746652,1746295843302,-557.55521766,0.00019372,2]
[359746655,1746295843315,-557.55521766,0.00019372,2]
[359746657,1746295843326,-234.90317365,0.00019372,2]
[359746659,1746295843337,-557.55521766,0.00019372,2]
[359746661,1746295843347,-500.0,0.00019372,2]
[359746665,1746295843357,-557.55521766,0.00019372,2]
[359746669,1746295843367,-118.78071649,0.00019372,2]
[359746673,1746295843381,-438.77450117,0.00019372,2]
[359746676,1746295843392,-500.0,0.00019372,2]
[359746679,1746295843403,-500.0,0.00019372,2]
[359746683,1746295843415,-557.55521766,0.00019372,2]
[359746686,1746295843426,-557.55521766,0.00019372,2]
[359746689,1746295843437,-500.0,0.00019372,2]
[359746692,1746295843447,-557.55521766,0.00019372,2]
[359746695,1746295843457,-183.19719673,0.00019372,2]
[359746699,1746295843470,-374.35802093,0.00019372,2]
[359746702,1746295843481,-500.0,0.00019372,2]
[359746706,1746295843492,-557.55521766,0.00019372,2]
[359746708,1746295843503,-557.55521766,0.00019372,2]
[359746710,1746295843514,-213.9032003,0.00019372,2]
[359746713,1746295843525,-557.55521766,0.00019372,2]
[359746715,1746295843536,-557.55521766,0.00019372,2]
[359746717,1746295843548,-341.76491087,0.00019372,2]
[359746980,1746295846142,-159.446896,0.000189,2]
[359746982,1746295846153,-215.79030679,0.00019372,2]
[359746984,1746295846164,-557.55521766,0.00019372,2]
[359746987,1746295846175,-557.55521766,0.00019372,2]
[359746989,1746295846186,-557.55521766,0.00019372,2]
[359746991,1746295846195,-557.55521766,0.00019372,2]
[359746993,1746295846206,-557.55521766,0.00019372,2]
[359746995,1746295846217,-557.55521766,0.00019372,2]
[359746997,1746295846227,-557.55521766,0.00019372,2]
[359747000,1746295846238,-557.55521766,0.00019372,2]
[359747002,1746295846248,-557.55521766,0.00019372,2]
[359747004,1746295846259,-557.55521766,0.00019372,2]
[359747006,1746295846269,-557.55521766,0.00019372,2]
[359747008,1746295846279,-557.55521766,0.00019372,2]
[359747010,1746295846290,-557.55521766,0.00019372,2]
[359747012,1746295846300,-223.52339763,0.00019372,2]
[359747895,1746297032216,-150.0,0.000189,2]
[359747896,1746297032227,-231.63577316,0.00019,2]
[359747897,1746297032237,-197.025875,0.00019178,2]
[359747898,1746297032247,-1283.71791295,0.00019259,2]
[359747899,1746297032256,-318.35119729,0.00019259,2]
[359747900,1746297032267,-72.64192397,0.0001926,2]
[359747901,1746297032279,-1211.07598896,0.0001926,2]
[359747902,1746297032289,-1283.71791293,0.00019261,2]
[359747903,1746297032299,-1200.0,0.00019261,2]
[359747905,1746297032309,-213.0,0.00019261,2]
[359747907,1746297032319,-1283.71791293,0.00019261,2]
[359747909,1746297032329,-1283.71791293,0.00019262,2]
[359747911,1746297032338,-273.0,0.00019296,2]
[359747912,1746297032348,-2473.90058914,0.00019298,2]
[359747913,1746297032358,-2500.0,0.000193,2]
[359747914,1746297032367,-3150.0184,0.000193,2]
[359747915,1746297032377,-151.0,0.00019351,2]
[359747916,1746297032387,-215.92,0.00019354,3]
[359747917,1746297032400,-647.8,0.00019354,3]
[359747918,1746297032410,-10680.72444282,0.00019357,3]
[359747919,1746297032422,-5051.36970495,0.00019357,3]
[359747920,1746297032434,-699.856,0.00019357,3]
[359747921,1746297032447,-2897.63428113,0.00019357,3]
[359747922,1746297032460,-2248.87162903,0.00019357,3]
[359747932,1746297038164,-6645.12716028,0.00019357,3]
[359747933,1746297038220,-844.19082374,0.00019357,3]
[359747934,1746297038231,-5429.38725719,0.00019357,3]
[359747935,1746297038244,-1379.42499992,0.00019357,3]
[359748128,1746297040560,-596.5379497,0.00019357,3]
[359748134,1746297040619,-127.39961513,0.00019357,3]
[359748136,1746297040628,-1703.76337534,0.00019357,2]
[359748138,1746297040640,-818.08372704,0.00019357,2]
[359748141,1746297040651,-2852.47573755,0.00019357,2]
[359748144,1746297040674,-139473.46691647,0.00019357,2]
[359748146,1746297040683,-500.0,0.00019358,2]
[359748148,1746297040693,-500.0,0.00019358,2]
[359748149,1746297040701,-1004.84802811,0.00019358,2]
[359748151,1746297040711,-496.99791214,0.00019358,2]
[359748153,1746297040720,-500.0,0.00019358,2]
[359748155,1746297040729,-500.0,0.00019358,2]
[359748157,1746297040737,-500.0,0.00019358,2]
[359748159,1746297040747,-1004.84802811,0.00019358,2]
[359748161,1746297040756,-301.54480003,0.00019358,2]
[359748163,1746297040765,-500.0,0.00019358,2]
[359748165,1746297040774,-194.21957246,0.00019358,2]
[359748166,1746297040783,-500.0,0.00019358,2]
[359748168,1746297040792,-1004.84802811,0.00019358,2]
[359748170,1746297040801,-500.0,0.00019358,2]
[359748172,1746297040810,-1004.84802811,0.00019358,2]
[359748174,1746297040819,-500.0,0.00019358,2]
[359748176,1746297040828,-500.0,0.00019358,2]
[359748177,1746297040837,-1004.84802811,0.00019358,2]
[359748179,1746297040846,-500.0,0.00019358,2]
[359748181,1746297040855,-214.48376589,0.00019358,2]
[359748183,1746297040864,-1004.84802811,0.00019358,2]
[359748184,1746297040873,-500.0,0.00019358,2]
[359748186,1746297040883,-1004.84802811,0.00019358,2]
[359748200,1746297041028,-500.0,0.00019358,2]
[359748201,1746297041037,-500.0,0.00019358,2]
[359748203,1746297041047,-1004.84802811,0.00019358,2]
[359748205,1746297041056,-500.0,0.00019358,2]
[359748207,1746297041065,-1004.84802811,0.00019358,2]
[359748209,1746297041073,-500.0,0.00019358,2]
[359748210,1746297041084,-1004.84802811,0.00019358,2]
[359748212,1746297041093,-500.0,0.00019358,2]
[359748214,1746297041102,-1004.84802811,0.00019358,2]
[359748216,1746297041112,-500.0,0.00019358,2]
[359748217,1746297041120,-1004.84802811,0.00019358,2]
[359748219,1746297041130,-500.0,0.00019358,2]
[359748221,1746297041139,-1004.84802811,0.00019358,2]
[359748223,1746297041148,-500.0,0.00019358,2]
[359748224,1746297041157,-1004.84802811,0.00019358,2]
[359748226,1746297041167,-1004.84802811,0.00019358,2]
[359748228,1746297041176,-500.0,0.00019358,2]
[359748230,1746297041186,-1004.84802811,0.00019358,2]
[359748231,1746297041195,-500.0,0.00019358,2]
[359748233,1746297041204,-1004.84802811,0.00019358,2]
[359748235,1746297041214,-1004.84802811,0.00019358,2]
[359748237,1746297041223,-500.0,0.00019358,2]
[359748239,1746297041233,-500.0,0.00019358,2]
[359748240,1746297041242,-1004.84802811,0.00019358,2]
[359748242,1746297041251,-500.0,0.00019358,2]
[359748244,1746297041261,-1004.84802811,0.00019358,2]
[359748246,1746297041271,-1004.84802811,0.00019358,2]
[359748247,1746297041280,-500.0,0.00019358,2]
[359748249,1746297041289,-1004.84802811,0.00019358,2]
[359748251,1746297041299,-500.0,0.00019358,2]
[359748253,1746297041309,-1004.84802811,0.00019358,2]
[359748255,1746297041318,-500.0,0.00019358,2]
[359748257,1746297041328,-1004.84802811,0.00019358,2]
[359748259,1746297041337,-500.0,0.00019358,2]
[359748260,1746297041346,-1004.84802811,0.00019358,2]
[359748262,1746297041355,-500.0,0.00019358,2]
[359748264,1746297041367,-1004.84802811,0.00019358,2]
[359748266,1746297041379,-1004.84802811,0.00019358,2]
[359748268,1746297041389,-500.0,0.00019358,2]
[359748270,1746297041401,-1004.84802811,0.00019358,2]
[359748272,1746297041418,-1004.84802811,0.00019358,2]
[359748274,1746297041429,-493.02067427,0.00019358,2]
[359748275,1746297041439,-1004.84802811,0.00019358,2]
[359748277,1746297041448,-500.0,0.00019358,2]
[359748279,1746297041458,-1004.84802811,0.00019358,2]
[359748281,1746297041467,-500.0,0.00019358,2]
[359748283,1746297041476,-1004.84802811,0.00019358,2]
[359748285,1746297041486,-1004.84802811,0.00019358,2]
[359748287,1746297041495,-500.0,0.00019358,2]
[359748288,1746297041505,-1004.84802811,0.00019358,2]
[359748290,1746297041515,-1004.84802811,0.00019358,2]
[359748292,1746297041524,-1004.84802811,0.00019358,2]
[359748294,1746297041533,-1004.84802811,0.00019358,2]
[359748296,1746297041542,-1004.84802811,0.00019358,2]
[359748298,1746297041552,-1004.84802811,0.00019358,2]
[359748300,1746297041561,-1004.84802811,0.00019358,2]
[359748301,1746297041570,-1004.84802811,0.00019358,2]
[359748303,1746297041579,-1004.84802811,0.00019358,2]
[359748305,1746297041589,-1004.84802811,0.00019358,2]
[359748307,1746297041598,-1004.84802811,0.00019358,2]
[359748309,1746297041608,-1004.84802811,0.00019358,2]
[359748311,1746297041617,-1004.84802811,0.00019358,2]
[359748313,1746297041627,-1004.84802811,0.00019358,2]
[359748314,1746297041636,-1004.84802811,0.00019358,2]
[359748316,1746297041645,-1004.84802811,0.00019358,2]
[359748318,1746297041654,-1004.84802811,0.00019358,2]
[359748320,1746297041664,-1004.84802811,0.00019358,2]
[359748322,1746297041672,-1004.84802811,0.00019358,2]
[359748324,1746297041682,-1004.84802811,0.00019358,2]
[359748325,1746297041691,-1004.84802811,0.00019358,2]
[359748327,1746297041701,-1004.84802811,0.00019358,2]
[359748329,1746297041711,-1004.84802811,0.00019358,2]
[359748331,1746297041720,-1004.84802811,0.00019358,2]
[359748333,1746297041730,-1004.84802811,0.00019358,2]
[359748335,1746297041739,-1593.75351915,0.00019358,2]
[359748336,1746297041749,-500.0,0.00019358,2]
[359748338,1746297041759,-1593.75351915,0.00019358,2]
[359748340,1746297041768,-500.0,0.00019358,2]
[359748342,1746297041777,-1593.75351915,0.00019358,2]
[359748344,1746297041787,-500.0,0.00019358,2]
[359748346,1746297041796,-1593.75351915,0.00019358,2]
[359748348,1746297041805,-500.0,0.00019358,2]